bitfinex/quotes_BTCUSD_20250519
["timestamp","ask_amount","ask_price","bid_price","bid_amount"]
[1747675474125,0.3498512,105240.0,105230.0,0.35122112]
[1747675474334,0.3498512,105240.0,105230.0,0.49366112]
[1747675480441,0.3498512,105240.0,105230.0,0.82011956]
[1747675483173,0.2873512,105240.0,105230.0,0.82011956]
[1747675484131,0.3203512,105240.0,105230.0,0.35122112]
[1747675484406,0.3514512,105240.0,105230.0,0.35122112]
[1747675484652,0.36599205,105240.0,105230.0,0.35122112]
[1747675484824,0.36599205,105240.0,105230.0,0.15366112]
[1747675494880,0.36599205,105240.0,105230.0,0.01122112]
[1747675503496,0.36599205,105240.0,105230.0,0.22436629]
[1747675504020,0.36599205,105240.0,105230.0,0.01122112]
[1747675504673,0.36599205,105240.0,105230.0,0.22436629]
[1747675505233,0.2873512,105240.0,105230.0,0.22436629]
[1747675506940,0.2873512,105240.0,105230.0,0.03483765]
[1747675508900,0.2873512,105240.0,105230.0,0.22489751]
[1747675509225,0.2873512,105240.0,105230.0,0.03483765]
[1747675509898,0.2873512,105240.0,105230.0,0.06543765]
[1747675510102,0.2873512,105240.0,105230.0,0.03483765]
[1747675511311,0.2873512,105240.0,105230.0,0.22489751]
[1747675511512,0.0973094,105240.0,105230.0,0.59649751]
[1747675511720,0.01900326,105240.0,105230.0,1.70272502]
[1747675511919,0.20904488,105240.0,105230.0,1.69322284]
[1747675512127,0.0285048,105240.0,105230.0,1.66788755]
[1747675512546,0.0380067,105240.0,105230.0,1.88103272]
[1747675513100,0.0380067,105240.0,105230.0,1.66788755]
[1747675513458,0.0380067,105240.0,105230.0,1.88103272]
[1747675513655,0.0380067,105240.0,105230.0,1.45474238]
[1747675514061,1.80742908,105250.0,105240.0,0.61994733]
[1747675514262,1.79792799,105250.0,105240.0,1.40029078]
[1747675515111,1.79992799,105250.0,105240.0,1.40029078]
[1747675515315,1.80192799,105250.0,105240.0,1.40029078]
[1747675515513,1.80192799,105250.0,105240.0,1.40892119]
[1747675515712,1.79992799,105250.0,105240.0,1.40892119]
[1747675515914,1.79992799,105250.0,105240.0,1.50623059]
[1747675516320,1.79792799,105250.0,105240.0,1.50623059]
[1747675517297,1.79792799,105250.0,105240.0,1.5157065]
[1747675517834,1.79792799,105250.0,105240.0,1.50707609]
[1747675519343,1.79792799,105250.0,105240.0,1.51250206]
[1747675520083,1.79792799,105250.0,105240.0,1.51550206]
[1747675520696,1.79792799,105250.0,105240.0,1.51850206]
[1747675521689,1.77514812,105250.0,105240.0,1.51850206]
[1747675523548,1.21883754,105250.0,105240.0,1.51850206]
[1747675523732,1.06607634,105250.0,105240.0,1.57187471]
[1747675523938,0.97502634,105250.0,105240.0,1.58187471]
[1747675524139,0.90138634,105250.0,105240.0,1.58864639]
[1747675524346,0.10857939,105250.0,105240.0,1.58864639]
[1747675524684,0.002,105270.0,105260.0,0.62020546]
[1747675524868,0.002,105270.0,105260.0,5.76249986]
[1747675525420,0.002,105290.0,105280.0,0.55846394]
[1747675525619,0.02621119,105310.0,105300.0,0.59162245]
[1747675525800,0.02621119,105310.0,105300.0,4.99905245]
[1747675526002,0.0263547,105310.0,105300.0,4.72537545]
[1747675526160,0.0263547,105310.0,105300.0,4.82268485]
[1747675527152,0.002,105330.0,105320.0,0.61958098]
[1747675527365,0.002,105330.0,105320.0,5.56499538]
[1747675528530,0.004,105330.0,105320.0,5.57042135]
[1747675528720,0.004,105330.0,105320.0,5.50941452]
[1747675528943,0.25556088,105330.0,105320.0,1.01010116]
[1747675529144,0.27826727,105330.0,105320.0,0.68221338]
[1747675529360,0.27826727,105330.0,105320.0,0.69091338]
[1747675529767,0.27826727,105330.0,105320.0,0.68548741]
[1747675529970,0.27826727,105330.0,105320.0,0.88487955]
[1747675530506,0.27826727,105330.0,105320.0,0.5334]
[1747675530708,0.27826727,105330.0,105320.0,0.3874]
[1747675530912,0.27826727,105330.0,105320.0,0.52976]
[1747675531112,0.69972899,105330.0,105320.0,0.3874]
[1747675531292,0.26479214,105320.0,105310.0,0.00677168]
[1747675531497,0.37664239,105320.0,105310.0,0.14913168]
[1747675531874,0.70079471,105320.0,105310.0,0.14913168]
[1747675532131,0.70079471,105320.0,105310.0,0.00677168]
[1747675532359,0.70079471,105320.0,105310.0,0.14236]
[1747675532562,0.37664239,105320.0,105310.0,0.14236]
[1747675532957,0.37664239,105320.0,105310.0,0.632538]
[1747675532958,0.33939614,105320.0,105310.0,0.632538]
[1747675533172,0.36050154,105320.0,105310.0,0.617401]
[1747675533575,0.36050154,105320.0,105310.0,0.48236]
[1747675534116,0.37504239,105320.0,105310.0,0.48236]
[1747675534319,0.69919471,105320.0,105310.0,0.48236]
[1747675534656,0.69919471,105320.0,105310.0,0.34]
[1747675535083,0.0324,105300.0,105290.0,0.2468328]
[1747675535417,0.26031858,105300.0,105290.0,0.62871182]
[1747675535619,0.26031858,105300.0,105290.0,0.98772722]
[1747675535795,0.26031858,105300.0,105290.0,0.99722425]
[1747675536764,0.26031858,105300.0,105290.0,0.98972722]
[1747675536964,0.26383019,105300.0,105290.0,0.54090579]
[1747675537171,0.36113959,105300.0,105290.0,0.48650351]
[1747675537587,0.36113959,105300.0,105290.0,0.76016551]
[1747675538852,0.36113959,105300.0,105290.0,0.95011707]
[1747675539046,0.36113959,105300.0,105290.0,0.95553047]
[1747675539811,0.35164292,105300.0,105290.0,0.76557891]
[1747675540006,0.35164292,105300.0,105290.0,0.49191691]
[1747675541218,0.34924292,105300.0,105290.0,0.49191691]
[1747675541435,0.76530927,105300.0,105290.0,0.00955691]
[1747675541648,0.01899741,105270.0,105260.0,0.06829313]
[1747675541853,0.01899741,105270.0,105260.0,2.26205057]
[1747675542054,0.03799554,105270.0,105260.0,2.25967578]
[1747675542295,0.23748257,105270.0,105260.0,2.25017613]
[1747675542517,0.227984,105270.0,105260.0,2.25017613]
[1747675542719,0.227984,105270.0,105260.0,1.73320713]
[1747675542890,0.227984,105270.0,105260.0,1.77556713]
[1747675543098,0.21848516,105270.0,105260.0,1.2677853]
[1747675543297,0.21848516,105270.0,105260.0,1.29640912]
[1747675543524,0.23208703,105270.0,105260.0,0.48871437]
[1747675543727,0.6680896,105270.0,105260.0,0.01102937]
[1747675544100,0.34393728,105270.0,105260.0,0.35202937]
[1747675544441,0.37393728,105270.0,105260.0,0.01202937]
[1747675544580,0.29679643,105270.0,105260.0,0.7151429]
[1747675544791,0.01899723,105270.0,105260.0,0.90333454]
[1747675545008,0.03799545,105270.0,105260.0,0.90333454]
[1747675545351,0.03799545,105270.0,105260.0,0.87450274]
[1747675545771,0.037995,105270.0,105260.0,0.86447337]
[1747675545917,0.02849643,105270.0,105260.0,0.86447337]
[1747675546119,0.03999572,105270.0,105260.0,0.86447337]
[1747675547123,0.03049643,105270.0,105260.0,0.86447337]
[1747675547324,0.002,105270.0,105260.0,1.05261457]
[1747675547786,0.002,105270.0,105260.0,1.02378277]
[1747675549635,0.002,105270.0,105260.0,1.02478277]
[1747675550024,0.02099397,105290.0,105280.0,0.55846394]
[1747675550228,0.02099397,105290.0,105280.0,1.63236794]
[1747675550229,0.02099388,105290.0,105280.0,1.63236794]
[1747675550421,0.02099388,105290.0,105280.0,1.58741194]
[1747675550955,0.002,105290.0,105280.0,1.79602134]
[1747675551161,0.004,105290.0,105280.0,1.82485314]
[1747675552007,0.00114335,105300.0,105290.0,0.59094319]
[1747675552213,0.00114335,105300.0,105290.0,5.51971759]
[1747675553113,0.02013534,105300.0,105290.0,3.22786377]
[1747675553318,0.02013534,105300.0,105290.0,2.63386337]
[1747675553525,0.05423534,105300.0,105290.0,1.48415131]
[1747675553882,0.06373174,105300.0,105290.0,1.48415131]
[1747675554041,0.06373174,105300.0,105290.0,1.48963326]
[1747675554042,0.07322823,105300.0,105290.0,1.48963326]
[1747675554250,0.27265842,105300.0,105290.0,1.20917932]
[1747675554459,0.27065842,105300.0,105290.0,1.21867635]
[1747675554664,0.0807249,105300.0,105290.0,1.22817329]
[1747675556090,0.30315842,105300.0,105290.0,1.22817329]
[1747675556292,0.29366175,105300.0,105290.0,1.22817329]
[1747675556611,0.1142249,105300.0,105290.0,1.22817329]
[1747675556817,0.29704368,105300.0,105290.0,1.21867635]
[1747675557108,0.29466256,105300.0,105290.0,1.21867635]
[1747675557271,0.29466256,105300.0,105290.0,0.83423635]
[1747675557482,0.29466256,105300.0,105290.0,0.97659635]
[1747675558468,0.29466256,105300.0,105290.0,0.98609329]
[1747675559236,0.69713175,105300.0,105290.0,0.00548195]
[1747675559461,0.37297943,105300.0,105290.0,0.00548195]
[1747675560194,0.37197943,105300.0,105290.0,0.00548195]
[1747675560631,0.7116726,105300.0,105290.0,0.00548195]
[1747675561462,0.7126726,105300.0,105290.0,0.00548195]
[1747675561660,1.03682492,105300.0,105290.0,0.00448195]
[1747675561867,0.27128578,105270.0,105260.0,0.002]
[1747675562212,0.36859518,105270.0,105260.0,0.342]
[1747675562437,0.36859518,105270.0,105260.0,0.002]
[1747675562643,0.36859518,105270.0,105260.0,0.342]
[1747675563157,0.36859518,105270.0,105260.0,0.485055]
[1747675563307,0.36959518,105270.0,105260.0,0.70356073]
[1747675563504,0.36959518,105270.0,105260.0,0.69406099]
[1747675563706,0.01999759,105270.0,105260.0,0.71406056]
[1747675563903,0.0389959,105270.0,105260.0,0.71406065]
[1747675564174,0.0389959,105270.0,105260.0,0.7235603]
[1747675564543,0.03899581,105270.0,105260.0,0.7235603]
[1747675565460,0.02949661,105270.0,105260.0,0.7235603]
[1747675565666,0.001,105270.0,105260.0,0.7235603]
[1747675566056,0.01049866,105270.0,105260.0,1.1317603]
[1747675566256,0.001,105270.0,105260.0,1.1317603]
[1747675566714,0.01049866,105270.0,105260.0,1.1317603]
[1747675567515,0.01999741,105270.0,105260.0,1.1317603]
[1747675568354,0.02949634,105270.0,105260.0,1.1317603]
[1747675568769,0.03899554,105270.0,105260.0,1.2741203]
[1747675568937,0.02949634,105270.0,105260.0,1.2741203]
[1747675569136,0.03899545,105270.0,105260.0,1.2741203]
[1747675569636,0.03899545,105270.0,105260.0,1.28325858]
[1747675569863,0.04849465,105270.0,105260.0,1.28325858]
[1747675570075,0.04849465,105270.0,105260.0,1.12189919]
[1747675570076,0.2384823,105270.0,105260.0,1.12189919]
[1747675570281,0.0595967,105270.0,105260.0,1.27375884]
[1747675571107,0.0690959,105270.0,105260.0,1.27375884]
[1747675571422,0.25908355,105270.0,105260.0,1.26425919]
[1747675571630,0.25908427,105270.0,105260.0,1.22501519]
[1747675572375,0.25908427,105270.0,105260.0,1.23451493]
[1747675572581,0.25908427,105270.0,105260.0,1.22537665]
[1747675573042,0.25908427,105270.0,105260.0,1.20637708]
[1747675573247,0.27248623,105270.0,105260.0,1.22773208]
[1747675573659,0.27248623,105270.0,105260.0,1.10256608]
[1747675573848,0.26298703,105270.0,105260.0,0.7512]
[1747675574048,0.26298703,105270.0,105260.0,0.8936]
[1747675574684,0.26298703,105270.0,105260.0,0.89914303]
[1747675574885,0.36029643,105270.0,105260.0,0.75674303]
[1747675575340,0.24168578,105270.0,105260.0,0.85041884]
[1747675575540,0.24168614,105270.0,105260.0,0.64141303]
[1747675575769,0.24168614,105270.0,105260.0,0.56552403]
[1747675575982,0.24168614,105270.0,105260.0,0.77453002]
[1747675576183,0.24168614,105270.0,105260.0,0.76503001]
[1747675576387,0.24168614,105270.0,105260.0,0.78403012]
[1747675576587,0.24168614,105270.0,105260.0,0.79353004]
[1747675577267,0.27278614,105270.0,105260.0,0.79353004]
[1747675577469,0.27278614,105270.0,105260.0,0.78403012]
[1747675577616,0.26328694,105270.0,105260.0,0.77453011]
[1747675577829,0.26328694,105270.0,105260.0,0.74933886]
[1747675578040,0.0327,105270.0,105260.0,0.75883851]
[1747675578230,0.01999741,105270.0,105260.0,0.75883851]
[1747675578433,0.01049857,105270.0,105260.0,0.75883851]
[1747675578636,0.01049866,105270.0,105260.0,0.75883851]
[1747675578881,0.01999759,105270.0,105260.0,0.75883851]
[1747675579456,0.01049866,105270.0,105260.0,0.75883851]
[1747675579665,0.0199975,105270.0,105260.0,0.75883851]
[1747675580071,0.07089563,105270.0,105260.0,0.75883851]
[1747675580421,0.0518975,105270.0,105260.0,0.75883851]
[1747675580580,0.0199975,105270.0,105260.0,0.75883851]
[1747675580989,0.0199975,105270.0,105260.0,1.16703851]
[1747675581163,0.03899563,105270.0,105260.0,1.16703851]
[1747675581363,0.26088391,105270.0,105260.0,1.14803912]
[1747675581587,0.28178507,105270.0,105260.0,1.13853911]
[1747675581797,0.26278694,105270.0,105260.0,0.93002303]
[1747675581986,0.26278694,105270.0,105260.0,1.16563701]
[1747675582237,0.25328765,105270.0,105260.0,0.88734303]
[1747675582367,0.25328765,105270.0,105260.0,0.75674303]
[1747675582567,0.25328765,105270.0,105260.0,0.89914303]
[1747675582995,0.35059705,105270.0,105260.0,0.75674303]
[1747675585940,0.3651379,105270.0,105260.0,0.75674303]
[1747675586963,0.3651379,105270.0,105260.0,0.34854303]
[1747675588191,0.68929022,105270.0,105260.0,0.00854303]
[1747675589093,0.68929022,105270.0,105260.0,0.003]
[1747675589292,0.68829022,105270.0,105260.0,0.003]
[1747675589545,0.69329022,105270.0,105260.0,0.003]
[1747675589779,0.69329022,105270.0,105260.0,0.002]
[1747675590234,0.93733022,105270.0,105260.0,0.002]
[1747675590507,0.6131779,105270.0,105260.0,0.002]
[1747675596302,0.21404665,105260.0,105250.0,0.14385102]
[1747675596509,0.21404665,105260.0,105240.0,0.37244807]
[1747675596510,0.20902476,105250.0,105240.0,0.3819497]
[1747675596745,0.1068095,105260.0,105250.0,0.21852621]
[1747675596943,0.02849949,105260.0,105250.0,0.21852621]
[1747675597149,0.22800538,105260.0,105250.0,0.21852621]
[1747675597357,0.22800556,105260.0,105250.0,0.20902566]
[1747675597768,0.01900155,105250.0,105240.0,0.41314584]
[1747675597996,0.02850174,105250.0,105240.0,2.02629047]
[1747675598208,0.02850174,105250.0,105240.0,1.95169247]
[1747675598421,0.03800265,105250.0,105240.0,2.29169247]
[1747675598733,0.02850174,105250.0,105240.0,2.29169247]
[1747675598934,0.01900101,105250.0,105240.0,2.29169247]
[1747675599151,0.01900101,105250.0,105240.0,2.69989247]
[1747675599727,0.01900101,105250.0,105240.0,2.70089247]
[1747675600885,0.02850174,105250.0,105240.0,2.70089247]
[1747675601092,0.02850174,105250.0,105240.0,2.11359047]
[1747675602568,0.01900101,105250.0,105240.0,2.11359047]
[1747675603677,0.00950037,105250.0,105240.0,2.11359047]
[1747675603877,0.01900092,105250.0,105240.0,2.11359047]
[1747675604096,0.02850165,105250.0,105240.0,1.79035047]
[1747675604298,0.02850165,105250.0,105240.0,1.7973611]
[1747675604470,0.02850165,105250.0,105240.0,1.6549611]
[1747675604720,0.02850165,105250.0,105240.0,1.7973611]
[1747675604918,0.02850165,105250.0,105240.0,1.7666611]
[1747675605123,0.03800256,105250.0,105240.0,1.7666611]
[1747675605329,0.02850165,105250.0,105240.0,1.7666611]
[1747675605500,0.01900092,105250.0,105240.0,1.7666611]
[1747675605754,0.02850156,105250.0,105240.0,1.7666611]
[1747675605959,0.03800238,105250.0,105240.0,1.7666611]
[1747675606548,0.02850156,105250.0,105240.0,1.7666611]
[1747675606749,0.03800238,105250.0,105240.0,1.7666611]
[1747675607099,0.03800229,105250.0,105240.0,1.76878875]
[1747675607401,0.03800229,105250.0,105240.0,1.80208875]
[1747675609583,0.03800229,105250.0,105240.0,1.65968875]
[1747675609802,0.03800229,105250.0,105240.0,1.81159074]
[1747675610374,0.0475032,105250.0,105240.0,1.81159074]
[1747675610806,0.04750311,105250.0,105240.0,1.81159074]
[1747675611132,0.03800274,105250.0,105240.0,1.81159074]
[1747675613474,0.02850192,105250.0,105240.0,1.81159074]
[1747675614947,0.27118614,105270.0,105260.0,0.55850573]
[1747675615265,0.25038507,105270.0,105260.0,1.68916399]
[1747675615469,0.27188614,105270.0,105260.0,1.02922498]
[1747675615691,0.26238694,105270.0,105260.0,0.6724057]
[1747675615984,0.25288765,105270.0,105260.0,0.4824]
[1747675616186,0.25488765,105270.0,105260.0,0.4824]
[1747675616395,0.35219705,105270.0,105260.0,0.4824]
[1747675616791,0.35219705,105270.0,105260.0,0.49511769]
[1747675617424,0.34959491,105270.0,105260.0,0.01271769]
[1747675617626,0.67374723,105270.0,105260.0,0.01271769]
[1747675618942,0.67374723,105270.0,105260.0,0.00711385]
[1747675619816,0.33505406,105270.0,105260.0,0.00711385]
[1747675620041,0.34455326,105270.0,105260.0,0.20661974]
[1747675620252,0.34455326,105270.0,105260.0,0.95728173]
[1747675620472,0.14506641,105270.0,105260.0,1.10918183]
[1747675620649,0.32079456,105270.0,105260.0,1.11868175]
[1747675620882,0.35399456,105270.0,105260.0,1.02047683]
[1747675621103,0.35399456,105270.0,105260.0,1.02997666]
[1747675621812,0.35399456,105270.0,105260.0,1.02047683]
[1747675622227,0.34449563,105270.0,105260.0,1.02047683]
[1747675623621,0.34449563,105270.0,105260.0,0.94224783]
[1747675623828,0.34449563,105270.0,105260.0,0.94936168]
[1747675625408,0.36609643,105270.0,105260.0,0.69462367]
[1747675625796,0.36609643,105270.0,105260.0,0.85927068]
[1747675626221,0.36609643,105270.0,105260.0,0.8687706]
[1747675626501,0.36609643,105270.0,105260.0,0.85927068]
[1747675626649,0.36609643,105270.0,105260.0,0.84977067]
[1747675627844,0.35659705,105270.0,105260.0,0.84977067]
[1747675628029,0.35659705,105270.0,105260.0,0.69462367]
[1747675628446,0.35659705,105270.0,105260.0,0.49511769]
[1747675629879,0.3711379,105270.0,105260.0,0.35271769]
[1747675630087,0.3711379,105270.0,105260.0,0.15511769]
[1747675630088,0.69529022,105270.0,105260.0,0.15511769]
[1747675630422,0.69529022,105270.0,105260.0,0.01271769]
[1747675630550,0.3711379,105270.0,105260.0,0.01271769]
[1747675630765,0.3711379,105270.0,105260.0,0.00560384]
[1747675631472,0.1995058,105260.0,105250.0,0.56331769]
[1747675631701,0.3577152,105260.0,105250.0,0.90331769]
[1747675632241,0.3577152,105260.0,105250.0,0.49511769]
[1747675632781,0.3587152,105260.0,105250.0,0.49511769]
[1747675633511,0.3607152,105260.0,105250.0,0.49511769]
[1747675637181,0.37525605,105260.0,105250.0,0.35271769]
[1747675637585,0.37525605,105260.0,105250.0,0.49511769]
[1747675639602,0.37525605,105260.0,105250.0,0.48800384]
[1747675640398,0.37021521,105260.0,105250.0,0.68752868]
[1747675640774,0.33941521,105260.0,105250.0,0.67802759]
[1747675640976,0.21200581,105260.0,105250.0,1.24355559]
[1747675642027,0.2025058,105260.0,105250.0,1.24355559]
[1747675642696,0.1930057,105260.0,105250.0,0.48800384]
[1747675642896,0.25858682,105260.0,105250.0,0.48800384]
[1747675643044,0.2562057,105260.0,105250.0,0.48800384]
[1747675643268,0.2562057,105260.0,105250.0,0.34560384]
[1747675643460,0.2562057,105260.0,105250.0,0.48800384]
[1747675643671,0.36805595,105260.0,105250.0,0.48800384]
[1747675645884,0.36805595,105260.0,105250.0,0.34560384]
[1747675646108,0.36805595,105260.0,105250.0,0.48800384]
[1747675648526,0.36805595,105260.0,105250.0,0.71357184]
[1747675648934,0.36805595,105260.0,105250.0,0.56093534]
[1747675649135,0.36805595,105260.0,105250.0,0.367968]
[1747675649665,0.36805595,105260.0,105250.0,0.327868]
[1747675650578,0.36805595,105260.0,105250.0,0.1424]
[1747675650778,0.36805595,105260.0,105250.0,0.327868]
[1747675651020,0.36805595,105260.0,105250.0,0.316989]
[1747675652151,0.36805595,105260.0,105250.0,0.1424]
[1747675652715,0.36805595,105260.0,105250.0,0.322896]
[1747675653314,0.36805595,105260.0,105250.0,0.1424]
[1747675654963,0.36805595,105260.0,105250.0,0.29185]
[1747675655403,0.36805595,105260.0,105250.0,0.48187375]
[1747675655404,0.3630152,105260.0,105250.0,0.48187375]
[1747675655534,0.02199939,105260.0,105250.0,0.57457621]
[1747675655750,0.03149949,105260.0,105250.0,0.57457621]
[1747675655949,0.23100538,105260.0,105250.0,0.57457621]
[1747675657284,0.23100538,105260.0,105250.0,0.58169006]
[1747675657521,0.23100538,105260.0,105250.0,0.57218951]
[1747675657905,0.23100538,105260.0,105250.0,0.58169024]
[1747675658888,0.23100538,105260.0,105250.0,0.59119088]
[1747675660454,0.23100538,105260.0,105250.0,0.60032916]
[1747675660678,0.23100538,105260.0,105250.0,0.59082852]
[1747675661256,0.22150582,105260.0,105250.0,0.59082852]
[1747675662832,0.21200599,105260.0,105250.0,0.58132779]
[1747675662978,0.21200599,105260.0,105250.0,0.51712779]
[1747675663438,0.21200599,105260.0,105250.0,0.84762697]
[1747675663645,0.1930057,105260.0,105250.0,0.83812588]
[1747675663798,0.2259057,105260.0,105250.0,0.84762706]
[1747675664010,0.2259057,105260.0,105250.0,0.85712815]
[1747675664206,0.3545151,105260.0,105250.0,0.49865213]
[1747675664412,0.3545151,105260.0,105250.0,0.35625213]
[1747675666069,0.3232151,105260.0,105250.0,0.34711385]
[1747675666288,0.21200554,105260.0,105250.0,1.31463851]
[1747675666711,0.21200554,105260.0,105250.0,1.27149051]
[1747675666957,0.21200554,105260.0,105250.0,1.18158851]
[1747675667861,0.23100574,105260.0,105250.0,1.18158851]
[1747675668460,0.221506,105260.0,105250.0,1.17208769]
[1747675668666,0.221506,105260.0,105250.0,1.05630769]
[1747675668783,0.221506,105260.0,105250.0,0.94368169]
[1747675671063,0.21200599,105260.0,105250.0,0.94368169]
[1747675671475,0.21200599,105260.0,105250.0,0.90360269]
[1747675671684,0.24350599,105260.0,105250.0,0.90360269]
[1747675672441,0.21200599,105260.0,105250.0,0.90360269]
[1747675672635,0.21200599,105260.0,105250.0,0.9131036]
[1747675673554,0.20250589,105260.0,105250.0,0.90360269]
[1747675676833,0.20250589,105260.0,105250.0,0.9131036]
[1747675678704,0.20250589,105260.0,105250.0,0.56598975]
[1747675678903,0.03149967,105260.0,105250.0,0.38439606]
[1747675679113,0.04099986,105260.0,105250.0,0.5839209]
[1747675679319,0.23100619,105260.0,105250.0,0.58392108]
[1747675680167,0.23100619,105260.0,105250.0,0.56491926]
[1747675680870,0.23100619,105260.0,105250.0,0.58392063]
[1747675681442,0.23100619,105260.0,105250.0,0.57441999]
[1747675682654,0.26260619,105260.0,105250.0,0.57441999]
[1747675683171,0.25310627,105260.0,105250.0,0.57441999]
[1747675683936,0.0441001,105260.0,105250.0,0.57441999]
[1747675684139,0.003,105260.0,105250.0,0.64452054]
[1747675684345,0.003,105260.0,105250.0,0.67335234]
[1747675684548,0.01249956,105260.0,105250.0,0.67335234]
[1747675684772,0.01249956,105260.0,105250.0,0.64452054]
[1747675684978,0.27848711,105260.0,105250.0,0.347463]
[1747675685347,0.27610599,105260.0,105250.0,0.347463]
[1747675685526,0.26660598,105260.0,105250.0,0.67988675]
[1747675685925,0.26660598,105260.0,105250.0,0.69888902]
[1747675686242,0.27610599,105260.0,105250.0,0.70838993]
[1747675686464,0.03149913,105260.0,105250.0,0.72739121]
[1747675686665,0.02199921,105260.0,105250.0,0.72739121]
[1747675686863,0.003,105260.0,105250.0,0.78929121]
[1747675687064,0.003,105260.0,105250.0,0.81812301]
[1747675687297,0.01249956,105260.0,105250.0,0.81812301]
[1747675687488,0.01249947,105260.0,105250.0,0.78929121]
[1747675687842,0.02199912,105260.0,105250.0,0.78929121]
[1747675688676,0.01249947,105260.0,105250.0,0.78929121]
[1747675688878,0.01249947,105260.0,105250.0,0.72739121]
[1747675689083,0.02199903,105260.0,105250.0,0.72739121]
[1747675689564,0.003,105260.0,105250.0,0.79019121]
[1747675689975,0.003,105260.0,105250.0,1.69102606]
[1747675690307,0.003,105260.0,105250.0,1.56488486]
[1747675690514,0.01249947,105260.0,105250.0,1.56488486]
[1747675690839,0.01249947,105260.0,105250.0,1.53448486]
[1747675691209,0.02199912,105260.0,105250.0,1.01968486]
[1747675691421,0.07339887,105260.0,105250.0,0.72739121]
[1747675691619,0.07339878,105260.0,105250.0,0.72739121]
[1747675691816,0.06389886,105260.0,105250.0,0.72739121]
[1747675692050,0.07339878,105260.0,105250.0,0.72739121]
[1747675692571,0.08289888,105260.0,105250.0,0.72739121]
[1747675692801,0.07339941,105260.0,105250.0,0.347463]
[1747675693011,0.27818684,105260.0,105250.0,0.67988675]
[1747675693218,0.27580572,105260.0,105250.0,0.69888893]
[1747675693431,0.27580572,105260.0,105250.0,0.70838984]
[1747675693652,0.27580572,105260.0,105250.0,0.71789057]
[1747675693857,0.285306,105260.0,105250.0,0.71789057]
[1747675694076,0.05439948,105260.0,105250.0,0.72739112]
[1747675694283,0.003,105260.0,105250.0,0.72739112]
[1747675694486,0.003,105260.0,105250.0,0.81892292]
[1747675694695,0.003,105260.0,105250.0,1.15892292]
[1747675694902,0.003,105260.0,105250.0,1.18540777]
[1747675695311,0.003,105260.0,105250.0,1.15657597]
[1747675696488,0.003,105260.0,105250.0,1.13009112]
[1747675701030,0.003,105260.0,105250.0,1.53829112]
[1747675708842,0.003,105260.0,105250.0,1.50669112]
[1747675710002,0.003,105260.0,105250.0,1.47559112]
[1747675710378,0.003,105260.0,105250.0,1.4727769]
[1747675711582,0.08629957,105260.0,105250.0,0.94287253]
[1747675711787,0.08629939,105260.0,105250.0,1.10147221]
[1747675711988,0.07918068,105260.0,105250.0,1.10147221]
[1747675712210,0.07918059,105260.0,105250.0,1.44147221]
[1747675712422,0.06968112,105260.0,105250.0,1.10147221]
[1747675712689,0.06968112,105260.0,105250.0,1.44147221]
[1747675713025,0.0957994,105260.0,105250.0,0.84586039]
[1747675713202,0.0673,105260.0,105250.0,0.85536094]
[1747675713385,0.08629921,105260.0,105250.0,0.56802694]
[1747675713579,0.08629921,105260.0,105250.0,0.71042694]
[1747675713807,0.08629912,105260.0,105250.0,0.83176494]
[1747675714011,0.09579904,105260.0,105250.0,0.83176494]
[1747675714236,0.09818016,105260.0,105250.0,0.83176494]
[1747675714445,0.09579904,105260.0,105250.0,0.83176494]
[1747675714614,0.08629912,105260.0,105250.0,0.83176494]
[1747675715038,0.09579904,105260.0,105250.0,0.83176494]
[1747675715356,0.08629912,105260.0,105250.0,0.83176494]
[1747675715599,0.08629912,105260.0,105250.0,0.83782451]
[1747675718197,0.09818016,105260.0,105250.0,0.83782451]
[1747675718371,0.38311468,105260.0,105250.0,0.54558441]
[1747675718605,0.19310898,105260.0,105250.0,0.70698578]
[1747675718807,0.18599,105260.0,105250.0,0.81568278]
[1747675719002,0.1954901,105260.0,105250.0,0.70698578]
[1747675719210,0.20499029,105260.0,105250.0,0.55508523]
[1747675719428,0.37361539,105260.0,105250.0,0.34605957]
[1747675722653,0.38815624,105260.0,105250.0,0.34605957]
[1747675724051,0.37865614,105260.0,105250.0,0.34605957]
[1747675729343,0.37865614,105260.0,105250.0,0.53608332]
[1747675730269,0.37865614,105260.0,105250.0,0.19608332]
[1747675730631,0.37361521,105260.0,105250.0,0.22458596]
[1747675730831,0.39261514,105260.0,105250.0,0.22458596]
[1747675731032,0.39261514,105260.0,105250.0,0.21508532]
[1747675731033,0.17410905,105260.0,105250.0,0.21508532]
[1747675731238,0.14160887,105260.0,105250.0,0.91981769]
[1747675731452,0.11930852,105260.0,105250.0,0.91981769]
[1747675731652,0.12880835,105260.0,105250.0,0.91981769]
[1747675731795,0.12880826,105260.0,105250.0,0.91981769]
[1747675732407,0.13830809,105260.0,105250.0,0.91981769]
[1747675732623,0.17060809,105260.0,105250.0,0.91981769]
[1747675732837,0.16110826,105260.0,105250.0,0.91981769]
[1747675733039,0.01249947,105260.0,105250.0,0.91981769]
[1747675733282,0.02199912,105260.0,105250.0,0.91981769]
[1747675733665,0.01249947,105260.0,105250.0,0.91981769]
[1747675734107,0.02199912,105260.0,105250.0,0.91981769]
[1747675734308,0.05369912,105260.0,105250.0,0.91981769]
[1747675734512,0.05369903,105260.0,105250.0,0.91981769]
[1747675734918,0.05369903,105260.0,105250.0,0.57466369]
[1747675734919,0.30390512,105260.0,105250.0,0.57466369]
[1747675735123,0.11389942,105260.0,105250.0,0.64966369]
[1747675735343,0.11389924,105260.0,105250.0,0.61392069]
[1747675735929,0.11389924,105260.0,105250.0,0.47152069]
[1747675736138,0.29678704,105260.0,105250.0,0.36698614]
[1747675736306,0.29440592,105260.0,105250.0,0.37648687]
[1747675736498,0.29440592,105260.0,105250.0,0.23408687]
[1747675736695,0.29440592,105260.0,105250.0,0.37648687]
[1747675737105,0.3039062,105260.0,105250.0,0.60534442]
[1747675737311,0.3039062,105260.0,105250.0,0.53616942]
[1747675738466,0.07589965,105260.0,105250.0,0.53616942]
[1747675738759,0.08539948,105260.0,105250.0,0.53616942]
[1747675738961,0.0948994,105260.0,105250.0,0.53616942]
[1747675739590,0.1043995,105260.0,105250.0,0.53616942]
[1747675739815,0.0948994,105260.0,105250.0,0.53616942]
[1747675740228,0.1043995,105260.0,105250.0,0.53616942]
[1747675740442,0.0948994,105260.0,105250.0,0.53616942]
[1747675740667,0.10439941,105260.0,105250.0,0.53616942]
[1747675741565,0.11389951,105260.0,105250.0,0.39376942]
[1747675741766,0.10439986,105260.0,105250.0,0.53616942]
[1747675742354,0.0948994,105260.0,105250.0,0.87616942]
[1747675742563,0.05369939,105260.0,105250.0,0.87616942]
[1747675742775,0.003,105260.0,105250.0,0.87616942]
[1747675742965,0.01249956,105260.0,105250.0,0.88380607]
[1747675743186,0.01249947,105260.0,105250.0,0.88380607]
[1747675743873,0.02199912,105260.0,105250.0,0.88380607]
[1747675744120,0.01249947,105260.0,105250.0,0.88380607]
[1747675744329,0.02199912,105260.0,105250.0,0.54380607]